bitfinex/quotes_ETHUSD_20250319
["timestamp","ask_amount","ask_price","bid_price","bid_amount"]
[1742344343277,0.005,1951.3,1951.1,22.564]
[1742344344442,0.005,1951.3,1951.1,27.68905]
[1742344344954,0.005,1951.3,1951.1,22.564]
[1742344345351,5.12575,1951.0,1950.6,0.802]
[1742344345556,5.12575,1951.0,1950.7,5.589]
[1742344345760,5.12575,1951.0,1950.6,3.802]
[1742344346076,5.12575,1951.0,1950.7,5.587]
[1742344346655,5.12656,1950.7,1950.4,22.545]
[1742344346989,5.12667,1950.6,1950.4,22.545]
[1742344347161,5.639126,1950.7,1950.4,22.545]
[1742344347367,10.765736,1950.7,1950.4,16.963]
[1742344347579,0.512656,1950.7,1950.4,16.963]
[1742344348295,5.639056,1950.7,1950.4,16.963]
[1742344348591,0.5639056,1950.6,1950.4,16.963]
[1742344348761,10.765676,1950.7,1950.4,16.963]
[1742344348962,5.639076,1950.7,1950.4,16.963]
[1742344349364,5.12689,1950.5,1950.4,16.963]
[1742344349662,5.12679,1950.6,1950.4,16.963]
[1742344350492,5.639066,1950.7,1950.4,16.963]
[1742344350675,5.6905366,1950.6,1950.4,16.963]
[1742344351093,5.12689,1950.5,1950.4,16.963]
[1742344351303,5.12689,1950.5,1950.1,9.14]
[1742344351304,5.12715,1950.4,1950.1,9.14]
[1742344351607,5.12746,1950.3,1950.1,5.555]
[1742344351815,5.12746,1950.3,1950.0,5.551]
[1742344351997,0.7664,1950.4,1949.7,6.57408026]
[1742344351998,0.512746,1950.2,1949.7,6.57408026]
[1742344352192,5.12781,1950.2,1949.7,5.553]
[1742344352416,5.12744,1950.3,1949.7,10.68186]
[1742344352708,6.229553,1950.3,1949.7,10.68186]
[1742344352917,11.357213,1950.3,1949.7,10.68181]
[1742344353092,11.357213,1950.3,1949.8,5.1287]
[1742344353292,5.12778,1950.2,1949.7,10.68181]
[1742344353999,5.12778,1950.2,1949.7,5.12881]
[1742344354310,6.2635133,1950.2,1949.8,5.546]
[1742344354472,1.1357333,1950.2,1949.8,5.546]
[1742344354673,10.25511,1950.3,1949.8,10.67462]
[1742344354897,5.1277,1950.2,1949.8,5.546]
[1742344355218,0.7664,1950.4,1949.9,5.12846]
[1742344355430,5.89366,1950.4,1949.9,5.12846]
[1742344355578,5.12757,1950.3,1949.8,10.67456]
[1742344355781,5.8936,1950.4,1949.8,11.742016]
[1742344356080,5.12709,1950.5,1950.0,5.90417]
[1742344356293,5.12709,1950.5,1950.1,5.12791]
[1742344356507,5.1269,1950.5,1950.1,5.79693394]
[1742344356702,5.1269,1950.5,1950.0,5.90417]
[1742344357018,5.1269,1950.5,1949.8,13.67453]
[1742344357019,5.12744,1950.3,1950.1,5.539]
[1742344357214,5.12725,1950.4,1950.1,5.539]
[1742344357582,5.12693,1950.5,1950.1,5.539]
[1742344357919,5.12767,1950.2,1950.1,5.539]
[1742344358115,5.640437,1950.2,1950.1,5.539]
[1742344358408,10.25768,1949.8,1949.7,5.537]
[1742344358611,5.12874,1949.8,1949.7,5.537]
[1742344358819,5.12849,1949.9,1949.7,5.537]
[1742344359016,5.12836,1950.0,1949.7,5.537]
[1742344359222,5.12851,1949.9,1949.7,5.537]
[1742344359586,5.12836,1950.0,1949.7,5.537]
[1742344359781,5.12851,1949.9,1949.7,5.537]
[1742344359980,5.12873,1949.8,1949.7,5.537]
[1742344360182,5.12873,1949.8,1949.3,17.96664518]
[1742344360183,5.12947,1949.6,1949.3,17.96664518]
[1742344360377,5.92333,1949.7,1949.3,22.488]
[1742344360607,5.12929,1949.6,1949.3,22.488]
[1742344361084,5.12959,1949.5,1949.3,22.488]
[1742344361400,5.12929,1949.6,1949.3,22.488]
[1742344361603,5.12929,1949.6,1949.0,6.9161]
[1742344361604,5.12978,1949.4,1949.0,0.7761]
[1742344361929,3.9511142,1949.5,1948.7,6.14]
[1742344361930,4.7453142,1949.2,1948.7,0.7761]
[1742344362227,0.7942,1949.4,1948.8,5.532]
[1742344362436,10.26127,1949.1,1948.8,5.532]
[1742344362583,5.131,1949.0,1948.6,17.9726833]
[1742344362783,5.13125,1948.9,1948.7,5.584]
[1742344363227,5.13136,1948.8,1948.7,5.584]
[1742344363424,5.13173,1948.7,1948.4,5.58]
[1742344363624,5.13173,1948.7,1948.3,0.00541754]
[1742344363625,5.13168,1948.7,1948.3,0.00541754]
[1742344363779,5.13161,1948.8,1948.3,15.85454754]
[1742344363991,5.92523,1949.0,1948.3,5.58941754]
[1742344363992,5.1317,1948.7,1948.3,5.58941754]
[1742344364323,0.7942,1949.0,1948.3,5.58941754]
[1742344364324,5.13199,1948.6,1948.3,5.59041754]
[1742344364681,5.13225,1948.5,1948.3,5.59041754]
[1742344364929,5.13241,1948.4,1948.3,0.00541754]
[1742344365936,6.22303532,1948.4,1948.3,0.00541754]
[1742344366135,6.22304027,1948.4,1948.3,0.00541754]
[1742344366688,6.158876,1948.4,1948.3,0.00541754]
[1742344367234,6.22304092,1948.4,1948.3,0.00541754]
[1742344367400,6.953076,1948.4,1948.3,0.00541754]
[1742344367927,7.01724554,1948.4,1948.3,7.54e-06]
[1742344368905,6.953076,1948.4,1948.3,7.54e-06]
[1742344369509,12.533076,1948.4,1948.3,7.54e-06]
[1742344371952,13.083076,1948.4,1948.3,7.54e-06]
[1742344372254,5.13469,1947.6,1947.3,22.54]
[1742344372605,5.13469,1947.6,1947.1,0.7761]
[1742344372606,5.13492,1947.5,1947.1,6.3441]
[1742344372754,5.13556,1947.3,1946.9,11.707]
[1742344372957,10.27142,1947.2,1946.9,5.567]
[1742344373256,5.92784,1947.3,1946.8,3.0]
[1742344373451,5.13584,1947.1,1946.7,23.116]
[1742344374041,5.92763,1947.3,1946.7,23.116]
[1742344374213,5.13533,1947.3,1946.8,3.0]
[1742344374415,5.13552,1947.3,1946.7,6.14]
[1742344374625,5.13571,1947.2,1946.7,6.14]
[1742344374826,5.1359,1947.1,1946.8,0.614]
[1742344376142,10.27194,1947.1,1946.8,0.614]
[1742344376360,5.1359,1947.1,1946.8,0.614]
[1742344376560,5.1356,1947.2,1946.8,0.614]
[1742344376872,0.7923,1947.6,1946.9,5.13621]
[1742344377039,5.13502,1947.5,1947.0,0.513621]
[1742344377241,5.13509,1947.4,1947.0,0.513621]
[1742344377549,5.13509,1947.4,1947.0,6.078621]
[1742344377931,5.13492,1947.5,1947.0,6.078621]
[1742344378126,5.13466,1947.6,1947.1,6.5208421]
[1742344379123,5.13479,1947.5,1947.1,6.5208421]
[1742344379325,5.13479,1947.5,1947.1,1.3852621]
[1742344379863,5.13479,1947.5,1947.0,6.078621]
[1742344379864,5.13542,1947.3,1947.0,6.078621]
[1742344380084,5.13509,1947.4,1947.0,6.078621]
[1742344380278,0.7851,1947.8,1946.8,6.14]
[1742344380279,0.7851,1947.3,1946.8,6.14]
[1742344380438,5.13612,1947.0,1946.7,5.551]
[1742344381378,5.13572,1947.2,1946.7,10.68789]
[1742344381693,5.13516,1947.4,1946.9,5.13636]
[1742344381976,5.91992,1947.5,1947.0,5.91341]
[1742344382182,5.91992,1947.5,1947.1,0.591341]
[1742344382384,5.13482,1947.5,1947.1,0.591341]
[1742344384088,5.13471,1947.6,1947.1,0.591341]
[1742344384241,5.13471,1947.6,1947.1,5.727131]
[1742344384242,10.26935,1947.6,1947.1,5.727131]
[1742344384442,5.13466,1947.6,1947.1,5.727131]
[1742344384639,5.13466,1947.6,1947.2,0.5727131]
[1742344384840,10.26931,1947.6,1947.2,0.51841865]
[1742344385057,10.26928,1947.6,1947.2,0.51841865]
[1742344385352,9.09449326,1947.6,1947.2,0.51841865]
[1742344385546,5.13463,1947.6,1947.2,0.51841865]
[1742344385747,10.26936,1947.6,1947.2,0.51841865]
[1742344385948,5.13516,1947.4,1947.0,3.7774]
[1742344386163,5.13479,1947.5,1947.0,8.91329]
[1742344386353,9.09440326,1947.6,1947.1,5.13565]
[1742344386553,5.1349,1947.5,1947.0,8.91329]
[1742344386753,3.95986326,1947.4,1947.0,3.7774]
[1742344386940,5.13598,1947.1,1946.9,6.14]
[1742344387138,5.13598,1947.1,1946.7,0.7905]
[1742344387139,9.09596326,1947.0,1946.7,0.7905]
[1742344387387,5.13598,1947.1,1946.7,0.7905]
[1742344387760,5.13598,1947.1,1946.7,3.7905]
[1742344389238,5.13614,1947.0,1946.7,0.7905]
[1742344389660,5.1366,1946.9,1946.5,6.3085]
[1742344389864,5.13637,1946.9,1946.5,6.3085]
[1742344390065,10.27195,1947.1,1946.6,10.27414]
[1742344390265,5.13595,1947.1,1946.7,5.13686]
[1742344390673,10.27192,1947.1,1946.7,5.13686]
[1742344390843,5.13595,1947.1,1946.7,5.13686]
[1742344391043,10.2719,1947.1,1946.6,5.137]
[1742344391250,5.13595,1947.1,1946.6,10.27403]
[1742344391456,5.13595,1947.1,1946.7,5.13688]
[1742344391683,5.96256,1947.3,1946.8,5.13651]
[1742344391883,5.13558,1947.2,1946.8,5.1365]
[1742344392381,5.96256,1947.3,1946.8,5.13637]
[1742344392682,9.09540326,1947.3,1946.9,3.7905]
[1742344392863,5.13564,1947.2,1946.9,3.7905]
[1742344393062,14.23095326,1947.3,1946.9,4.683213]
[1742344393647,5.13558,1947.2,1946.9,4.683213]
[1742344393846,5.13587,1947.1,1946.6,7.93877007]
[1742344394053,5.13548,1947.3,1946.7,3.0]
[1742344394354,5.13506,1947.4,1946.9,8.13613]
[1742344394554,14.22973326,1947.5,1947.0,5.949713]
[1742344394910,5.13457,1947.6,1947.1,5.92609]
[1742344395206,9.09433326,1947.7,1947.3,5.1353]
[1742344395347,5.13443,1947.7,1947.2,10.27086]
[1742344395550,5.13443,1947.7,1947.3,5.13519]
[1742344395853,5.13439,1947.7,1947.3,6.00376249]
[1742344396165,9.09425326,1947.7,1947.3,0.86857249]
[1742344396488,9.09425326,1947.7,1947.4,0.75590337]
[1742344396489,5.13439,1947.7,1947.4,0.75590337]
[1742344397388,5.13467,1947.6,1947.4,0.75590337]
[1742344397882,5.13429,1947.7,1947.4,3.75590337]
[1742344398255,5.13429,1947.7,1947.5,0.75590337]
[1742344398256,5.13453,1947.6,1947.5,0.75590337]
[1742344398474,10.26877,1947.7,1947.5,0.75590337]
[1742344399457,14.22863326,1947.7,1947.5,0.75590337]
[1742344399874,9.09415326,1947.7,1947.4,3.0]
[1742344400367,14.22779326,1947.9,1947.4,5.948449]
[1742344400563,14.22779326,1947.9,1947.4,11.083389]
[1742344400764,2.1176076,1948.3,1947.5,8.95547]
[1742344400964,5.13374,1947.9,1947.5,8.95547]
[1742344401381,5.13357,1948.0,1947.6,35.75733884]
[1742344401566,5.13357,1948.0,1947.6,36.62600533]
[1742344401966,10.26624,1948.2,1947.7,3.0]
[1742344402289,10.26624,1948.2,1947.7,8.134]
[1742344402290,5.13309,1948.2,1947.7,8.134]
[1742344402486,9.09257326,1948.3,1947.9,0.7518]
[1742344402697,9.09257326,1948.3,1947.9,8.88547]
[1742344402862,9.09257326,1948.3,1947.9,3.7518]
[1742344403057,5.13271,1948.3,1947.9,3.7518]
[1742344403260,5.13239,1948.5,1948.1,3.0]
[1742344403502,5.13228,1948.5,1948.1,3.0]
[1742344403809,9.09178326,1948.6,1948.1,8.13317]
[1742344404172,9.09178326,1948.6,1948.2,5.47]
[1742344404709,3.95986326,1948.6,1948.3,0.7518]
[1742344405216,9.09108326,1948.9,1948.4,5.13238]
[1742344405365,9.09108326,1948.9,1948.5,5.13213]
[1742344405565,9.09112326,1948.9,1948.5,3.0]
[1742344406069,3.95986326,1948.9,1948.6,5.13188]
[1742344406297,3.95986326,1948.9,1948.5,8.13203]
[1742344406516,9.09112326,1948.9,1948.5,3.0]
[1742344407024,3.95986326,1948.7,1948.5,35.0]
[1742344407225,3.95986326,1948.7,1948.3,3.0]
[1742344407226,5.13236,1948.5,1948.3,3.0]
[1742344407386,5.13193,1948.6,1948.3,0.75385396]
[1742344407595,10.26406,1948.6,1948.3,0.75385396]
[1742344408634,5.13217,1948.5,1948.1,14.35289]
[1742344408988,9.09203326,1948.5,1948.1,11.35289]
[1742344409313,5.13244,1948.4,1948.1,6.2198]
[1742344409616,9.09203326,1948.5,1948.1,11.35296]
[1742344410017,9.09203326,1948.5,1948.1,5.88496]
[1742344410230,9.09203326,1948.5,1948.1,11.33896]
[1742344410518,14.22441326,1948.5,1948.1,6.2058]
[1742344410689,9.09203326,1948.5,1948.1,6.2058]
[1742344410884,9.89338326,1948.7,1948.2,5.13283]
[1742344411091,9.09168326,1948.7,1948.2,5.13283]
[1742344411417,5.13182,1948.7,1948.3,8.13265]
[1742344411992,5.13182,1948.7,1948.3,3.0]
[1742344412204,5.13236,1948.5,1948.1,41.1998]
[1742344412397,5.13245,1948.4,1948.1,6.1998]
[1742344412796,5.13269,1948.3,1948.1,0.7518]
[1742344412995,5.13293,1948.3,1947.9,6.49539399]
[1742344413188,5.13293,1948.3,1947.9,1.80219399]
[1742344413387,5.13293,1948.3,1947.9,7.24619399]
[1742344413884,5.13293,1948.3,1947.9,8.78419839]
[1742344414090,9.09212326,1948.5,1948.0,5.1332]
[1742344414341,5.13243,1948.4,1948.0,5.1332]
[1742344414543,5.13243,1948.4,1948.1,3.0]
[1742344415022,5.13226,1948.5,1948.1,3.0]
[1742344415197,3.95986326,1948.4,1948.0,3.0]
[1742344415403,9.09239326,1948.4,1948.0,3.0]
[1742344415615,9.09239326,1948.4,1948.0,8.13345]
[1742344415810,3.95986326,1948.4,1948.1,5.13305]
[1742344416124,14.22389326,1948.6,1948.2,5.8846]
[1742344416422,9.09187326,1948.6,1948.2,0.7518]
[1742344416627,14.22391326,1948.6,1948.2,0.7518]
[1742344416918,9.09187326,1948.6,1948.2,5.88473]
[1742344417120,3.95986326,1948.6,1948.2,0.7518]
[1742344417297,5.13238,1948.5,1948.2,0.7518]
[1742344417696,5.13238,1948.5,1948.2,35.7518]
[1742344418099,10.26477,1948.5,1948.2,35.7518]
[1742344418298,5.13228,1948.5,1948.2,35.7518]
[1742344419123,9.09188326,1948.6,1948.2,40.88469]
[1742344419325,3.95986326,1948.6,1948.2,40.88469]
[1742344420694,9.09132326,1948.8,1948.4,5.13241]
[1742344420897,5.13181,1948.7,1948.3,8.13246]
[1742344421099,10.26363,1948.7,1948.3,8.13246]
[1742344421596,5.13181,1948.7,1948.3,8.13246]
[1742344421796,5.13181,1948.7,1948.3,43.13246]
[1742344422124,5.13189,1948.6,1948.3,38.0]
[1742344422328,5.13189,1948.6,1948.2,0.7518]
[1742344422329,5.13241,1948.4,1948.2,0.7518]
[1742344422824,5.19656609,1948.4,1948.2,35.7518]
[1742344422990,0.51965661,1948.3,1948.1,3.0]
[1742344423197,9.09245326,1948.4,1948.1,3.0]
[1742344423495,5.13279,1948.3,1948.1,3.0]
[1742344424926,5.13294,1948.2,1948.0,41.14]
[1742344425166,5.13294,1948.2,1948.0,6.14]
[1742344425700,5.13294,1948.2,1948.0,41.14]
[1742344426112,5.13268,1948.3,1948.0,41.14]
[1742344426427,5.13297,1948.2,1948.0,41.14]
[1742344426628,5.1332,1948.1,1948.0,44.14]
[1742344427017,5.1332,1948.1,1948.0,9.14]
[1742344427222,5.1332,1948.1,1948.0,6.14]
[1742344428343,5.1332,1948.1,1947.9,35.0]
[1742344428505,9.09303326,1948.2,1947.9,35.0]
[1742344428707,9.09294326,1948.2,1947.9,35.0]
[1742344428936,9.09294326,1948.2,1947.8,4.03039627]
[1742344429322,5.13324,1948.1,1947.8,4.03039627]
[1742344429534,5.13324,1948.1,1947.8,39.03039627]
[1742344430744,5.13324,1948.1,1947.8,38.0]
[1742344431327,9.09294326,1948.2,1947.8,3.0]
[1742344431526,9.09239326,1948.4,1947.9,5.13361]
[1742344431819,10.08379259,1948.4,1947.9,5.13361]
[1742344432020,5.13268,1948.3,1947.9,10.26723]
[1742344432237,5.13253,1948.4,1948.0,5.13344]
[1742344432441,5.13253,1948.4,1948.1,0.7594]
[1742344434259,5.19668905,1948.4,1948.1,0.7594]
[1742344434763,9.91361326,1948.5,1948.1,0.7594]
[1742344434764,15.04589326,1948.5,1948.1,5.8924]
[1742344435064,5.13246,1948.4,1948.1,0.7594]
[1742344436342,11.41820259,1948.5,1948.1,5.89259]
[1742344436539,9.09201326,1948.5,1948.1,5.89259]
[1742344437170,3.57135601,1948.5,1948.3,5.13261]
[1742344437453,5.13204,1948.6,1948.2,5.13271]
[1742344437670,3.57135601,1948.5,1948.2,5.13271]
[1742344438025,3.57135601,1948.5,1948.1,6.0854]
[1742344438026,3.57135601,1948.3,1948.1,3.0]
[1742344438444,8.70405601,1948.3,1948.1,3.0]
[1742344438960,10.26611,1948.2,1947.9,12.51574195]
[1742344439143,8.70477601,1948.1,1947.8,0.7594]
[1742344439341,5.13347,1948.0,1947.8,3.7594]
[1742344439661,8.70460601,1948.1,1947.8,3.7594]
[1742344440231,8.70508601,1947.9,1947.6,4.80958295]
[1742344440531,5.13299,1948.2,1947.8,3.0]
[1742344440858,3.57135601,1948.1,1947.7,3.0]
[1742344441061,8.70481601,1948.1,1947.7,8.13423]
[1742344441849,3.57135601,1948.2,1947.8,5.13375]
[1742344442053,8.70432601,1948.2,1947.8,5.13375]
[1742344442254,3.57135601,1948.2,1947.9,5.13368]
[1742344442561,14.59177601,1948.4,1948.0,5.89285]
[1742344442734,14.59177601,1948.4,1948.0,0.7594]
[1742344443157,5.13268,1948.3,1948.0,0.7594]
[1742344443975,5.13242,1948.4,1948.0,5.89275]
[1742344444182,3.57135601,1948.3,1948.0,5.89275]
[1742344444380,3.57135601,1948.5,1948.1,8.13314]
[1742344444779,13.83605601,1948.5,1948.1,3.0]
[1742344445074,5.13247,1948.4,1948.1,3.0]
[1742344445374,3.57135601,1948.3,1948.1,3.0]
[1742344446553,3.57135601,1948.3,1948.0,6.8994]
[1742344446554,5.13309,1948.2,1948.0,6.14]
[1742344446757,3.57135601,1948.1,1948.0,9.14]
[1742344447947,3.57135601,1948.1,1948.0,6.14]
[1742344448470,14.19403161,1948.3,1948.0,6.14]
[1742344448864,14.19403161,1948.3,1947.9,8.316]
[1742344449077,5.13298,1948.2,1947.9,8.316]
[1742344449380,5.13384,1947.9,1947.7,1.0289849]
[1742344449580,8.70519601,1947.9,1947.6,9.1271]
[1742344449786,5.13402,1947.8,1947.6,5.299]
[1742344450656,8.70511601,1947.9,1947.6,5.299]
[1742344450895,3.57135601,1947.9,1947.6,5.299]
[1742344451056,8.70523601,1947.9,1947.6,5.299]
[1742344451257,13.83921601,1947.9,1947.6,5.299]
[1742344451455,8.70523601,1947.9,1947.6,5.299]
[1742344452051,5.13402,1947.8,1947.5,6.14]
[1742344452257,8.70561601,1947.7,1947.5,6.14]
[1742344452690,8.70561601,1947.7,1947.4,4.85562519]
[1742344452691,5.13478,1947.5,1947.4,1.02752519]
[1742344452884,5.13478,1947.5,1947.1,6.14]
[1742344452885,5.13535,1947.3,1947.1,6.14]
[1742344453088,5.13568,1947.2,1946.9,22.272]
[1742344453291,5.13568,1947.2,1947.0,3.0]
[1742344453480,5.13568,1947.2,1946.9,22.272]
[1742344453661,5.13568,1947.2,1947.0,3.0]
[1742344453864,5.13568,1947.2,1946.9,22.272]
[1742344454315,3.57135601,1947.1,1946.9,22.272]
[1742344454611,5.13614,1947.0,1946.8,7.16357572]
[1742344454761,8.70740601,1947.1,1946.9,3.0]
[1742344455215,5.1361,1947.0,1946.8,5.285]
[1742344455698,8.70772601,1946.9,1946.8,5.285]
[1742344455908,8.70772601,1946.9,1946.8,8.285]
[1742344456075,5.13681,1946.8,1946.5,1.05189448]
[1742344456265,5.13681,1946.8,1946.6,5.282]
[1742344456760,5.13667,1946.8,1946.5,5.284]
[1742344457199,5.1361,1947.0,1946.5,9.408967]
[1742344457376,3.57135601,1947.1,1946.7,0.8281]
[1742344457583,8.70730601,1947.1,1946.7,5.96487]
[1742344457992,8.70730601,1947.1,1946.7,0.8281]
[1742344458193,5.1362,1947.0,1946.7,0.8281]
[1742344459096,8.70730601,1947.1,1946.7,5.96495]
[1742344459395,3.57135601,1947.1,1946.8,10.273]
[1742344459583,3.57135601,1947.1,1946.8,5.13642]
[1742344459893,10.2709,1947.3,1946.8,8.13642]
[1742344460097,3.57135601,1947.2,1946.8,8.13642]
[1742344460407,3.57135601,1947.2,1946.8,13.27294]
[1742344460708,3.57135601,1947.2,1946.9,6.261247]
[1742344460885,3.57135601,1947.2,1946.9,11.397447]
[1742344461200,8.70692601,1947.2,1946.9,1.124967]
[1742344461395,8.70692601,1947.2,1946.8,3.0]
[1742344461565,5.13594,1947.1,1946.8,3.0]
[1742344463103,8.70692601,1947.2,1946.8,8.13651]
[1742344463285,5.13612,1947.0,1946.8,3.0]
[1742344463489,8.70747601,1947.0,1946.7,3.8281]
[1742344463793,13.84382601,1947.0,1946.7,3.0]
[1742344464189,5.13644,1946.9,1946.7,3.0]
[1742344464582,3.57135601,1946.8,1946.7,3.0]
[1742344464977,8.70751601,1947.0,1946.7,3.0]
[1742344465200,8.70751601,1947.0,1946.4,6.14]
[1742344465201,3.57135601,1946.8,1946.4,1.02506538]
[1742344465373,5.13779,1946.4,1946.1,0.7995]
[1742344465569,5.13779,1946.4,1946.2,1.0135316]
[1742344465774,5.13709,1946.7,1946.2,1.0135316]
[1742344466092,8.70877601,1946.5,1946.2,4.0135316]
[1742344466470,5.13773,1946.4,1946.2,1.0135316]
[1742344466670,1.21005216,1946.8,1946.2,1.0135316]
[1742344466907,8.70844601,1946.7,1946.2,6.1515016]
[1742344467200,5.13719,1946.6,1946.2,11.4475016]
[1742344467382,5.13719,1946.6,1946.2,10.43397]
[1742344467584,8.70844601,1946.7,1946.2,15.57195]
[1742344467783,13.84556601,1946.7,1946.2,10.43397]
[1742344468187,8.70837601,1946.7,1946.3,5.13785]
[1742344469110,3.57135601,1946.5,1946.3,5.13785]
[1742344469313,3.57135601,1946.5,1946.2,5.296]
[1742344469314,8.70894601,1946.5,1946.2,5.296]
[1742344469493,5.13772,1946.4,1946.1,7.10191504]
[1742344470070,8.70891601,1946.5,1946.1,6.0855]
[1742344470298,3.57135601,1946.3,1946.1,6.0855]
[1742344470494,3.57135601,1946.3,1946.1,11.22381]
[1742344471307,3.57135601,1946.3,1946.0,3.0]
[1742344471611,3.57135601,1946.3,1946.0,8.286]
[1742344472380,9.58026561,1946.3,1946.0,8.286]
[1742344472873,4.44227561,1946.3,1946.0,8.286]
[1742344473205,4.44227561,1946.3,1946.0,3.0]
[1742344473606,4.44227561,1946.3,1946.0,8.13861]
[1742344473810,3.57135601,1946.3,1946.0,8.13861]
[1742344474408,3.57135601,1946.3,1946.0,3.0]
[1742344474590,8.70947601,1946.3,1946.0,3.0]
[1742344474788,3.57135601,1946.1,1946.0,3.0]
[1742344475074,8.77418687,1946.1,1945.9,1.02135809]
[1742344475297,8.77418687,1946.1,1945.6,0.832]
[1742344475298,6.01633869,1946.0,1945.6,0.832]
[1742344475622,3.57135601,1945.9,1945.6,5.97178]
[1742344479327,0.87741869,1946.0,1945.6,5.97178]
[1742344479614,8.70995601,1946.1,1945.6,11.11135]
[1742344479816,13.84858601,1946.1,1945.6,5.97167]
[1742344480181,8.70995601,1946.1,1945.6,5.97167]
[1742344480416,13.84863601,1946.1,1945.6,5.97167]
[1742344480716,3.57135601,1945.8,1945.5,28.407]
[1742344480898,3.57135601,1945.8,1945.5,16.55703]
[1742344481099,3.57135601,1945.8,1945.5,10.41703]
[1742344481301,4.34665601,1945.8,1945.5,5.277]
[1742344481506,10.43466261,1945.8,1945.5,5.277]
[1742344481885,3.57135601,1945.7,1945.4,0.81]
[1742344482083,8.71095601,1945.7,1945.3,9.25955823]
[1742344483033,8.71116601,1945.6,1945.3,3.0]
[1742344483194,3.57135601,1945.5,1945.2,3.81]
[1742344483400,3.57135601,1945.5,1945.2,0.81]
[1742344483599,3.57135601,1945.7,1945.3,5.14055]
[1742344484105,3.57135601,1945.7,1945.3,5.14044]
[1742344484289,4.34665601,1945.8,1945.4,5.14017]
[1742344484913,9.48593601,1945.8,1945.3,11.175925]
[1742344485108,9.48593601,1945.8,1945.3,6.035485]
[1742344485522,9.48593601,1945.8,1945.3,10.28082]
[1742344485722,8.77526445,1945.7,1945.3,5.14039]
[1742344485922,3.57135601,1945.7,1945.3,10.28085]
[1742344486789,3.57135601,1945.7,1945.3,10.28086]
[1742344487291,9.48593601,1945.8,1945.4,5.14032]
[1742344487487,9.48593601,1945.8,1945.3,5.14039]
[1742344487488,10.43463961,1945.8,1945.3,5.14039]
[1742344487920,0.7753,1945.8,1945.4,5.14019]
[1742344488093,5.91464,1945.8,1945.4,5.14019]
[1742344488289,5.13892,1946.0,1945.5,5.13997]
[1742344488516,5.13907,1945.9,1945.5,3.0]
[1742344488711,8.71084601,1945.8,1945.3,8.14048]
[1742344488917,8.71084601,1945.8,1945.3,3.0]
[1742344488918,5.13956,1945.7,1945.3,3.0]
[1742344489118,4.34365601,1945.6,1945.3,3.0]
[1742344489295,9.47171348,1945.6,1945.3,3.0]
[1742344489494,9.47182348,1945.6,1945.3,3.0]
[1742344489695,5.91225,1945.6,1945.3,3.0]
[1742344490313,0.7723,1945.6,1945.3,3.0]
[1742344490538,5.9118,1945.8,1945.3,8.14042]
[1742344490736,5.91175,1945.8,1945.3,8.14042]
[1742344491048,5.13955,1945.7,1945.3,8.14042]
[1742344491191,5.13955,1945.7,1945.3,3.0]
[1742344491192,5.13987,1945.6,1945.3,3.0]
[1742344491396,5.14027,1945.5,1945.3,3.0]
[1742344491830,5.13987,1945.6,1945.3,3.0]
[1742344492133,8.71092601,1945.7,1945.3,8.14058]
[1742344492497,0.7922,1945.4,1945.1,1.0500394]
[1742344492704,8.71194601,1945.3,1944.9,5.89824]
[1742344492902,5.14059,1945.3,1945.0,3.0]
[1742344493098,5.14059,1945.3,1945.0,3.889824]
[1742344493430,5.14127,1945.1,1944.7,3.7567]
[1742344493730,5.14087,1945.2,1944.8,6.27641437]
[1742344493731,10.28198,1945.2,1944.8,6.27641437]
[1742344493953,8.71197601,1945.3,1944.8,11.41827437]
[1742344494257,8.71197601,1945.3,1945.0,3.0]
[1742344495006,5.235,1945.6,1945.0,3.0]
[1742344495007,5.93213,1945.6,1945.2,5.14082]
[1742344495203,0.7922,1945.6,1945.3,0.514082]
[1742344495402,4.36355601,1945.6,1945.1,5.14087]
[1742344495654,4.36355601,1945.6,1945.0,3.7567]
[1742344495943,10.27946,1945.7,1945.3,3.0]
[1742344496099,5.13969,1945.7,1945.3,8.14056]
[1742344496722,0.7922,1945.8,1945.4,5.89691]
[1742344496907,9.50298601,1945.8,1945.4,6.786601]
[1742344497405,5.13954,1945.7,1945.4,0.7567]
[1742344497824,9.50298601,1945.8,1945.4,5.89686]
[1742344498266,9.50296601,1945.8,1945.3,8.14057]
[1742344498408,5.20402059,1945.7,1945.3,3.0]
[1742344498608,5.13988,1945.6,1945.3,3.0]
[1742344499133,13.85128601,1945.6,1945.3,3.0]
[1742344499339,8.71123601,1945.6,1945.3,3.0]
[1742344499542,9.50288601,1945.8,1945.3,8.14047]
[1742344499745,9.50288601,1945.8,1945.3,8.9635]
[1742344500051,9.50288601,1945.8,1945.4,5.89701]
[1742344500714,4.36355601,1945.8,1945.5,5.13982]
[1742344500929,9.50229601,1946.0,1945.6,5.13969]
[1742344501310,4.36355601,1946.0,1945.6,5.13969]
[1742344501510,9.50233601,1946.0,1945.6,5.13969]
[1742344502050,9.50233601,1946.0,1945.7,5.13949]
[1742344502051,4.36355601,1946.0,1945.7,5.13949]
[1742344502260,3.57135601,1946.0,1945.6,8.99877549]
[1742344502475,3.57135601,1945.8,1945.5,3.0]
[1742344502766,8.71068601,1945.8,1945.5,3.0]
[1742344502912,0.7922,1945.9,1945.6,5.13975]
[1742344503113,3.57135601,1946.0,1945.7,8.13948]
[1742344503408,6.0845846,1946.5,1945.7,3.7567]
[1742344503752,4.36355601,1946.4,1946.0,10.27718]
[1742344504074,8.70854601,1946.6,1946.2,5.13818]
[1742344504260,8.70801601,1946.8,1946.4,5.13762]
[1742344504443,3.57135601,1946.6,1946.2,3.0]